Workbook

Sheet Ноябрь51,85
A2: Примерное двухнедельное меню для обучающихся в общеобразовательных организациях с 1 - 4 классы
B3: Горячий завтрак | N3: (ноябрь,декабрь)
A5: Рецептура | B5: Наименование блюд | D5: Выход,г | E5: Цена | F5: Белки,г | G5: Жиры,г | H5: Углеводы,г | I5: Калорийность,ккал | J5: Вит.В1,мг | K5: Вит.С,мг | L5: Вит.А,мг | M5: Вит.Е,мг | N5: Са,мг | O5: Р,мг | P5: Mg,мг | Q5: Fe,мг
A6: 1неделя
A7: 1день
A8: №71,1997г | B8: Салат из моркови | D8: 60 | E8: 2.84 | F8: 0.632 | G8: 6.043 | H8: 4.341 | I8: 74 | J8: 0.029 | K8: 2.430 | M8: 2.834 | N8: 13.302 | O8: 26.850 | P8: 18.468 | Q8: 0.358
A9: №417,2004г | B9: Бифштекс из говядины | D9: 80 | E9: 37.26 | F9: 9.410 | G9: 7.610 | H9: 8.052 | I9: 194 | J9: 0.064 | K9: 2.304 | L9: 1.600 | M9: 1.343 | N9: 27.910 | O9: 140.408 | P9: 18.965 | Q9: 1.957
A10: №508,2004г | B10: Каша гречневая рассыпчатая с маслом | D10: 150/5 | E10: 6.43 | F10: 3.600 | G10: 7.000 | H10: 29.000 | I10: 193 | J10: 0.292 | L10: 41.000 | M10: 0.518 | N10: 27.352 | O10: 180.553 | P10: 104.550 | Q10: 3.501
A11: №686,2004 | B11: Чай с сахаром и лимоном | D11: 200/15/7 | E11: 2.00 | F11: 0.200 | G11: 0.100 | H11: 13.900 | I11: 57 | J11: 0.000 | K11: 1.120 | L11: 0.000 | M11: 0.010 | N11: 2.860 | O11: 1.340 | P11: 0.730 | Q11: 0.080
B12: Хлеб сельский,1с | D12: 20 | E12: 1.61 | F12: 1.300 | G12: 0.200 | H12: 7.000 | I12: 35 | J12: 0.020 | K12: 0.000 | L12: 0.000 | M12: 0.200 | N12: 4.700 | O12: 21.100 | P12: 6.300 | Q12: 0.520
B13: Хлеб белый,1с | D13: 30 | E13: 1.71 | F13: 2.280 | G13: 0.240 | H13: 14.760 | I13: 71 | J13: 0.033 | M13: 0.330 | N13: 6.000 | O13: 19.500 | P13: 4.200 | Q13: 0.330
A14: Итого: | E14: =SUM(E8:E13) -> 51.85 | F14: 17.422 | G14: 21.193 | H14: 77.053 | I14: 624 | J14: 0.438 | K14: 5.854 | L14: 42.600 | M14: 5.235 | N14: 82.124 | O14: 389.751 | P14: 153.213 | Q14: 6.746
A15: 2день
B16: Огурцы свежие | D16: 60 | E16: 3.96 | F16: 0.420 | G16: 0.060 | H16: 1.140 | I16: 7 | J16: 0.018 | K16: 4.200 | M16: 0.060 | N16: 10.200 | O16: 18.000 | P16: 8.400 | Q16: 0.300
A17: №489,2004г | B17: Рагу из птицы | D17: 50/150 | E17: 37.31 | F17: 12.750 | G17: 17.960 | H17: 29.850 | I17: 313 | J17: 0.201 | K17: 24.076 | L17: 27.200 | M17: 3.444 | N17: 34.660 | O17: 186.911 | P17: 46.394 | Q17: 2.111
A18: №692,2004г | B18: Какао с молоком | D18: 200 | E18: 7.26 | F18: 3.780 | G18: 0.670 | H18: 21.000 | I18: 105 | J18: 0.200 | K18: 1.330 | L18: 0.000 | M18: 0.000 | N18: 133.330 | O18: 111.110 | P18: 25.560 | Q18: 2.000
B19: Хлеб сельский,1с | D19: 20 | E19: 1.61 | F19: 1.300 | G19: 0.200 | H19: 7.000 | I19: 35 | J19: 0.020 | K19: 0.000 | L19: 0.000 | M19: 0.200 | N19: 4.700 | O19: 21.100 | P19: 6.300 | Q19: 0.520
B20: Хлеб белый,1с | D20: 30 | E20: 1.71 | F20: 2.280 | G20: 0.240 | H20: 14.760 | I20: 71 | J20: 0.033 | M20: 0.330 | N20: 6.000 | O20: 19.500 | P20: 4.200 | Q20: 0.330
A21: Итого: | E21: =SUM(E16:E20) -> 51.85 | F21: 20.530 | G21: 19.130 | H21: 73.750 | I21: 531 | J21: 0.472 | K21: 29.606 | L21: 27.200 | M21: 4.034 | N21: 188.890 | O21: 356.621 | P21: 90.854 | Q21: 5.261
A22: 3день
A23: №26,2004г | B23: Свекла отв.с маслом | D23: 60 | E23: 2.04 | F23: 0.819 | G23: 6.049 | H23: 4.807 | I23: 77 | J23: 0.011 | K23: 5.462 | M23: 2.695 | N23: 20.209 | O23: 23.607 | P23: 12.016 | Q23: 0.765
A24: №437,2004г | B24: Гуляш из говядины | D24: 50/50 | E24: 39.68 | F24: 9.100 | G24: 12.400 | H24: 10.500 | I24: 190 | J24: 0.030 | K24: 2.440 | M24: 0.410 | N24: 7.600 | O24: 128.900 | P24: 17.500 | Q24: 1.900
A25: №332,2004 | B25: Макароны отварные | D25: 150 | E25: 4.81 | F25: 5.652 | G25: 4.469 | H25: 28.000 | I25: 175 | J25: 0.087 | L25: 21.000 | M25: 0.818 | N25: 16.470 | O25: 47.070 | P25: 8.490 | Q25: 0.870
A26: №686,2004 | B26: Чай с сахаром и лимоном | D26: 200/15/7 | E26: 2.00 | F26: 0.200 | G26: 0.100 | H26: 13.900 | I26: 57 | J26: 0.000 | K26: 1.120 | L26: 0.000 | M26: 0.010 | N26: 2.860 | O26: 1.340 | P26: 0.730 | Q26: 0.080
B27: Хлеб сельский,1с | D27: 20 | E27: 1.61 | F27: 1.300 | G27: 0.200 | H27: 7.000 | I27: 35 | J27: 0.020 | K27: 0.000 | L27: 0.000 | M27: 0.200 | N27: 4.700 | O27: 21.100 | P27: 6.300 | Q27: 0.520
B28: Хлеб белый,1с | D28: 30 | E28: 1.71 | F28: 2.280 | G28: 0.240 | H28: 14.760 | I28: 71 | J28: 0.033 | M28: 0.330 | N28: 6.000 | O28: 19.500 | P28: 4.200 | Q28: 0.330
A29: Итого: | E29: =SUM(E23:E28) -> 51.85 | F29: 19.351 | G29: 23.458 | H29: 78.967 | I29: 605 | J29: 0.181 | K29: 9.022 | L29: 21.000 | M29: 4.463 | N29: 57.839 | O29: 241.517 | P29: 49.236 | Q29: 4.465
A30: 4день
B31: Овощи натуральны соленые | D31: 60 | E31: 3.84 | F31: 0.480 | G31: 0.060 | H31: 1.020 | I31: 8 | J31: 0.012 | K31: 3.000 | M31: 0.060 | N31: 13.800 | O31: 14.400 | P31: 8.400 | Q31: 0.360
A32: №520,2004г | B32: Запеканка картофельная | D32: 150 | E32: 180/5 | F32: 14.530 | G32: 19.210 | H32: 40.690 | I32: 408 | J32: 0.270 | K32: 36.736 | L32: 23.600 | M32: 5.153 | N32: 35.377 | O32: 202.777 | P32: 52.789 | Q32: 2.469
A33: №686,2004 | B33: Чай с сахаром и лимоном | D33: 200/15/7 | E33: 2.00 | F33: 0.200 | G33: 0.100 | H33: 13.900 | I33: 57 | J33: 0.000 | K33: 1.120 | L33: 0.000 | M33: 0.010 | N33: 2.860 | O33: 1.340 | P33: 0.730 | Q33: 0.080
B34: Хлеб сельский,1с | D34: 20 | E34: 1.61 | F34: 1.300 | G34: 0.200 | H34: 7.000 | I34: 35 | J34: 0.020 | K34: 0.000 | L34: 0.000 | M34: 0.200 | N34: 4.700 | O34: 21.100 | P34: 6.300 | Q34: 0.520
B35: Хлеб белый,1с | D35: 30 | E35: 1.71 | F35: 2.280 | G35: 0.240 | H35: 14.760 | I35: 71 | J35: 0.033 | M35: 0.330 | N35: 6.000 | O35: 19.500 | P35: 4.200 | Q35: 0.330
A36: Итого: | E36: =SUM(E31:E35) -> 9.16 | F36: 18.790 | G36: 19.810 | H36: 77.370 | I36: 579 | J36: 0.335 | K36: 40.856 | L36: 23.600 | M36: 5.753 | N36: 62.737 | O36: 259.117 | P36: 72.419 | Q36: 3.759
A37: 5день
B38: Помидоры свежие | D38: 60 | E38: 5.07 | F38: 0.660 | G38: 0.120 | H38: 2.280 | I38: 14 | J38: 0.036 | K38: 15.000 | M38: 0.420 | N38: 8.400 | O38: 15.600 | P38: 12.000 | Q38: 0.540
A39: №511,2004г | B39: Рис отварной | D39: 150 | E39: 7.41 | F39: 3.670 | G39: 4.900 | H39: 28.300 | I39: 172 | J39: 0,0,45 | L39: 39.900 | M39: 0.270 | N39: 4.950 | O39: 82.350 | P39: 27.000 | Q39: 0.540
A40: №462,2004г | B40: Тефтели с рисом в соусе | D40: 80/50 | E40: 34.16 | F40: 15.700 | G40: 26.000 | H40: 19.900 | I40: 377 | J40: 0.064 | K40: 0.620 | L40: 34.270 | M40: 5.799 | N40: 13.380 | O40: 33.170 | P40: 1.340 | Q40: 1.870
A41: №685,2004 | B41: Чай с сахаром | D41: 200/15 | E41: 1.89 | F41: 0.200 | H41: 13.700 | I41: 56 | J41: 0.008 | K41: 3.750 | M41: 0.075 | N41: 9.970 | O41: 7.500 | P41: 6.500 | Q41: 0.197
B42: Хлеб сельский,1с | D42: 20 | E42: 1.61 | F42: 1.300 | G42: 0.200 | H42: 7.000 | I42: 35 | J42: 0.020 | K42: 0.000 | L42: 0.000 | M42: 0.200 | N42: 4.700 | O42: 21.100 | P42: 6.300 | Q42: 0.520
B43: Хлеб белый,1с | D43: 30 | E43: 1.71 | F43: 2.280 | G43: 0.240 | H43: 14.760 | I43: 71 | J43: 0.033 | M43: 0.330 | N43: 6.000 | O43: 19.500 | P43: 4.200 | Q43: 0.330
A44: Итого: | E44: =SUM(E38:E43) -> 51.85 | F44: 23.810 | G44: 31.460 | H44: 85.940 | I44: 725 | J44: 0.161 | K44: 19.370 | L44: 74.170 | M44: 7.094 | N44: 47.400 | O44: 179.220 | P44: 57.340 | Q44: 3.997
A45: 6день
B46: Яблоко | D46: 100 | E46: 8.98 | F46: 0.360 | G46: 0.480 | H46: 10.320 | I46: 48.000 | J46: 0.036 | K46: 12.000 | L46: 0.000 | M46: 0.240 | N46: 19.200 | O46: 13.200 | P46: 10.800 | Q46: 2.640
B47: Салат из кв. капусты | D47: 60 | E47: 1.71 | F47: 0.933 | G47: 3.051 | H47: 5.641 | I47: 54 | J47: 0.018 | K47: 21.684 | M47: 1.392 | N47: 25.624 | O47: 18.316 | P47: 9.949 | Q47: 0.345
A48: №664,1996г | B48: Пельмени отварные | D48: 180/5 | E48: 37.56 | F48: 14.800 | G48: 15.000 | H48: 36.000 | I48: 338 | J48: 0.156 | K48: 2.491 | L48: 21.855 | M48: 1.258 | N48: 34.806 | O48: 191.434 | P48: 26.890 | Q48: 2.239
A49: №685,2004 | B49: Чай с сахаром | D49: 200/15 | E49: 1.89 | F49: 0.200 | H49: 13.700 | I49: 56 | J49: 0.008 | K49: 3.750 | M49: 0.075 | N49: 9.970 | O49: 7.500 | P49: 6.500 | Q49: 0.197
B50: Хлеб белый,1с | D50: 30 | E50: 1.71 | F50: 2.280 | G50: 0.240 | H50: 14.760 | I50: 71 | J50: 0.033 | M50: 0.330 | N50: 6.000 | O50: 19.500 | P50: 4.200 | Q50: 0.330
A51: Итого: | E51: =SUM(E46:E50) -> 51.85 | F51: 18.573 | G51: 18.771 | H51: 80.421 | I51: 567 | J51: 0.251 | K51: 39.925 | L51: 21.855 | M51: 3.295 | N51: 95.600 | O51: 249.950 | P51: 58.339 | Q51: 5.751
A52: 2неделя
A53: 1день
B54: Апельсины | D54: 100 | E54: 10.52 | F54: 0.360 | G54: 0.480 | H54: 10.320 | I54: 48.000 | J54: 0.036 | K54: 12.000 | L54: 0.000 | M54: 0.240 | N54: 19.200 | O54: 13.200 | P54: 10.800 | Q54: 2.640
A55: №43,2004г | B55: Салат из белокочанной капусты | D55: 60 | E55: 2.33 | F55: 0.933 | G55: 3.051 | H55: 5.641 | I55: 54 | J55: 0.018 | K55: 21.684 | M55: 1.392 | N55: 25.624 | O55: 18.316 | P55: 9.949 | Q55: 0.345
A56: №508,2004г | B56: Каша гречневая рассыпчатая с маслом | D56: 150 | E56: 6.43 | F56: 3.600 | G56: 7.000 | H56: 29.000 | I56: 193 | J56: 0.292 | L56: 41.000 | M56: 0.518 | N56: 27.352 | O56: 180.553 | P56: 104.550 | Q56: 3.501
B57: Фрикадельки мясные | D57: 44/40 | E57: 21.99 | F57: 6.622 | G57: 9.024 | H57: 33.000 | I57: 170 | J57: 0.291 | K57: 1.888 | L57: 21.000 | M57: 0.468 | N57: 20.632 | O57: 177.928 | P57: 104.220 | Q57: 3.448
A58: №692,2004г | B58: Какао с молоком | D58: 200 | E58: 7.26 | F58: 3.780 | G58: 0.670 | H58: 21.000 | I58: 105 | J58: 0.200 | K58: 1.330 | L58: 0.000 | M58: 0.000 | N58: 133.330 | O58: 111.110 | P58: 25.560 | Q58: 2.000
B59: Хлеб сельский,1с | D59: 20 | E59: 1.61 | F59: 1.300 | G59: 0.200 | H59: 7.000 | I59: 35 | J59: 0.020 | K59: 0.000 | L59: 0.000 | M59: 0.200 | N59: 4.700 | O59: 21.100 | P59: 6.300 | Q59: 0.520
B60: Хлеб белый,1с | D60: 30 | E60: 1.71 | F60: 2.280 | G60: 0.240 | H60: 14.760 | I60: 71 | J60: 0.033 | M60: 0.330 | N60: 6.000 | O60: 19.500 | P60: 4.200 | Q60: 0.330
A61: Итого: | E61: =SUM(E54:E60) -> 51.85 | F61: 18.875 | G61: 20.665 | H61: 120.721 | I61: 676 | J61: 0.890 | K61: 36.902 | L61: 62.000 | M61: 3.148 | N61: 236.838 | O61: 541.707 | P61: 265.579 | Q61: 12.784
A62: 2день
A63: №16,2004г | B63: Салат из огурцов с маслом | D63: 60 | E63: 4.83 | F63: 0.420 | G63: 0.060 | H63: 1.140 | I63: 7 | J63: 0.018 | K63: 4.200 | M63: 0.060 | N63: 10.200 | O63: 18.000 | P63: 8.400 | Q63: 0.300
A64: №511,2004г | B64: Рис отварной | D64: 150 | E64: 7.41 | F64: 3.670 | G64: 4.900 | H64: 28.300 | I64: 172 | J64: 0,0,45 | L64: 39.900 | M64: 0.270 | N64: 4.950 | O64: 82.350 | P64: 27.000 | Q64: 0.540
A65: №205,2003 | B65: Котлеты из птицы | D65: 80 | E65: 34.4 | F65: 11.000 | G65: 13.500 | H65: 4.786 | I65: 185 | J65: 0.089 | K65: 1.888 | L65: 37.781 | M65: 4.426 | N65: 19.564 | O65: 154.618 | P65: 18.693 | Q65: 1.304
A66: №685,2004 | B66: Чай с сахаром | D66: 200/15 | E66: 1.89 | F66: 0.200 | H66: 13.700 | I66: 56 | J66: 0.008 | K66: 3.750 | M66: 0.075 | N66: 9.970 | O66: 7.500 | P66: 6.500 | Q66: 0.197
B67: Хлеб сельский,1с | D67: 20 | E67: 1.61 | F67: 1.300 | G67: 0.200 | H67: 7.000 | I67: 35 | J67: 0.020 | K67: 0.000 | L67: 0.000 | M67: 0.200 | N67: 4.700 | O67: 21.100 | P67: 6.300 | Q67: 0.520
B68: Хлеб белый,1с | D68: 30 | E68: 1.71 | F68: 2.280 | G68: 0.240 | H68: 14.760 | I68: 71 | J68: 0.033 | M68: 0.330 | N68: 6.000 | O68: 19.500 | P68: 4.200 | Q68: 0.330
A69: Итого: | E69: =SUM(E63:E68) -> 51.85 | F69: =SUM(F63:F68) -> 18.870 | G69: 18.900 | H69: 69.686 | I69: 526 | J69: 0.168 | K69: 9.838 | L69: 77.681 | M69: 5.361 | N69: 55.384 | O69: 303.068 | P69: 71.093 | Q69: 3.191
A70: 3день
B71: Помидоры свежие | D71: 60 | E71: 5.07 | F71: 0.660 | G71: 0.120 | H71: 2.280 | I71: 14 | J71: 0.036 | K71: 15.000 | M71: 0.420 | N71: 8.400 | O71: 15.600 | P71: 12.000 | Q71: 0.540
A72: №520,2004г | B72: Картофельное пюре | D72: 150 | E72: 10.61 | F72: 3.282 | G72: 4.657 | H72: 22.027 | I72: 143 | J72: 0.163 | K72: 25.943 | L72: 25.500 | M72: 0.181 | N72: 46.606 | O72: 97.336 | P72: 32.978 | Q72: 1.231
A73: №338,2004г | B73: Котлеты рыбные | D73: 80 | E73: 32.57 | F73: 8.200 | G73: 8.100 | H73: 7.000 | I73: 134 | J73: 0.080 | K73: 0.128 | L73: 8.000 | M73: 4.000 | N73: 33.280 | O73: 120.096 | P73: 22.640 | Q73: 0.896
A74: №685,2004 | B74: Чай с сахаром | D74: 200/15 | E74: 1.89 | F74: 0.200 | H74: 13.700 | I74: 56 | J74: 0.008 | K74: 3.750 | M74: 0.075 | N74: 9.970 | O74: 7.500 | P74: 6.500 | Q74: 0.197
B75: Хлеб белый,1с | D75: 30 | E75: 1.71 | F75: 2.280 | G75: 0.240 | H75: 14.760 | I75: 71 | J75: 0.033 | M75: 0.330 | N75: 6.000 | O75: 19.500 | P75: 4.200 | Q75: 0.330
A76: Итого: | E76: =SUM(E71:E75) -> 51.85 | F76: 14.622 | G76: 13.117 | H76: 59.767 | I76: 418 | J76: 0.320 | K76: 44.821 | L76: 33.500 | M76: 5.006 | N76: 104.256 | O76: 260.032 | P76: 78.318 | Q76: 3.194
A77: 4день
A78: №71,1997г | B78: Салат из моркови | D78: 60 | E78: 2.84 | F78: 0.632 | G78: 6.043 | H78: 4.341 | I78: 74 | J78: 0.029 | K78: 2.430 | M78: 2.834 | N78: 13.302 | O78: 26.850 | P78: 18.468 | Q78: 0.358
A79: Табл11-1996г | B79: Сосиски отварные | D79: 100 | E79: 38.88 | F79: 12.000 | G79: 7.600 | H79: 16.000 | I79: 180 | J79: 0.300 | K79: 0.000 | M79: 0.500 | N79: 33.400 | O79: 182.800 | P79: 19.780 | Q79: 2.400
A80: №332,2004 | B80: Макароны отварные | D80: 150 | E80: 4.81 | F80: 5.652 | G80: 4.469 | H80: 28.000 | I80: 175 | J80: 0.087 | L80: 21.000 | M80: 0.818 | N80: 16.470 | O80: 47.070 | P80: 8.490 | Q80: 0.870
A81: №686,2004 | B81: Чай с сахаром и лимоном | D81: 200/15/7 | E81: 2.00 | F81: 0.200 | G81: 0.100 | H81: 13.900 | I81: 57 | J81: 0.000 | K81: 1.120 | L81: 0.000 | M81: 0.010 | N81: 2.860 | O81: 1.340 | P81: 0.730 | Q81: 0.080
B82: Хлеб сельский,1с | D82: 20 | E82: 1.61 | F82: 1.300 | G82: 0.200 | H82: 7.000 | I82: 35 | J82: 0.020 | K82: 0.000 | L82: 0.000 | M82: 0.200 | N82: 4.700 | O82: 21.100 | P82: 6.300 | Q82: 0.520
B83: Хлеб белый,1с | D83: 30 | E83: 1.71 | F83: 2.280 | G83: 0.240 | H83: 14.760 | I83: 71 | J83: 0.033 | M83: 0.330 | N83: 6.000 | O83: 19.500 | P83: 4.200 | Q83: 0.330
A84: Итого: | E84: =SUM(E78:E83) -> 51.85 | F84: 22.064 | G84: 18.652 | H84: 84.001 | I84: 592 | J84: 0.469 | K84: 3.550 | L84: 21.000 | M84: 4.692 | N84: 76.732 | O84: 298.660 | P84: 57.968 | Q84: 4.558
A85: 5день
A86: №26,2004г | B86: Свекла отв.с маслом | D86: 60 | E86: 2.04 | F86: 0.819 | G86: 6.049 | H86: 4.807 | I86: 77 | J86: 0.011 | K86: 5.462 | M86: 2.695 | N86: 20.209 | O86: 23.607 | P86: 12.016 | Q86: 0.765
A87: №511,2004г | B87: Рис отварной | D87: 150 | E87: 7.41 | F87: 3.670 | G87: 4.900 | H87: 28.300 | I87: 172 | J87: 0,0,45 | L87: 39.900 | M87: 0.270 | N87: 4.950 | O87: 82.350 | P87: 27.000 | Q87: 0.540
A88: ттк | B88: Гуляш из куриных грудок | D88: 50/50 | E88: 37.08 | F88: 6.700 | G88: 7.100 | H88: 4.000 | I88: 107 | J88: 0.113 | K88: 3.750 | L88: 48.000 | M88: 0.830 | N88: 21.080 | O88: 194.810 | P88: 24.520 | Q88: 1.658
A89: №686,2004 | B89: Чай с сахаром и лимоном | D89: 200/15/7 | E89: 2.00 | F89: 0.200 | G89: 0.100 | H89: 13.900 | I89: 57 | J89: 0.000 | K89: 1.120 | L89: 0.000 | M89: 0.010 | N89: 2.860 | O89: 1.340 | P89: 0.730 | Q89: 0.080
B90: Хлеб сельский,1с | D90: 20 | E90: 1.61 | F90: 1.300 | G90: 0.200 | H90: 7.000 | I90: 35 | J90: 0.020 | K90: 0.000 | L90: 0.000 | M90: 0.200 | N90: 4.700 | O90: 21.100 | P90: 6.300 | Q90: 0.520
B91: Хлеб белый,1с | D91: 30 | E91: 1.71 | F91: 2.280 | G91: 0.240 | H91: 14.760 | I91: 71 | J91: 0.033 | M91: 0.330 | N91: 6.000 | O91: 19.500 | P91: 4.200 | Q91: 0.330
A92: Итого: | E92: =SUM(E86:E91) -> 51.85 | F92: =SUM(F86:F91) -> 14.969 | G92: 18.589 | H92: 72.767 | I92: 519 | J92: 0.177 | K92: 10.332 | L92: 87.900 | M92: 4.335 | N92: 59.799 | O92: 342.707 | P92: 74.766 | Q92: 3.893
A93: 6день
A94: №16,2004г | B94: Салат из огурцов с маслом | D94: 60 | E94: 4.83 | F94: 0.420 | G94: 0.060 | H94: 1.140 | I94: 7 | J94: 0.018 | K94: 4.200 | M94: 0.060 | N94: 10.200 | O94: 18.000 | P94: 8.400 | Q94: 0.300
A95: №664,1996г | B95: Пельмени отварные | D95: 200/10 | E95: 41.70 | F95: 14.800 | G95: 15.000 | H95: 36.000 | I95: 338 | J95: 0.156 | K95: 2.491 | L95: 21.855 | M95: 1.258 | N95: 34.806 | O95: 191.434 | P95: 26.890 | Q95: 2.239
A96: №686,2004 | B96: Чай с сахаром и лимоном | D96: 200/15/7 | E96: 2.00 | F96: 0.200 | G96: 0.100 | H96: 13.900 | I96: 57 | J96: 0.000 | K96: 1.120 | L96: 0.000 | M96: 0.010 | N96: 2.860 | O96: 1.340 | P96: 0.730 | Q96: 0.080
B97: Хлеб сельский,1с | D97: 20 | E97: 1.61 | F97: 1.300 | G97: 0.200 | H97: 7.000 | I97: 35 | J97: 0.020 | K97: 0.000 | L97: 0.000 | M97: 0.200 | N97: 4.700 | O97: 21.100 | P97: 6.300 | Q97: 0.520
B98: Хлеб белый,1с | D98: 30 | E98: 1.71 | F98: 2.280 | G98: 0.240 | H98: 14.760 | I98: 71 | J98: 0.033 | M98: 0.330 | N98: 6.000 | O98: 19.500 | P98: 4.200 | Q98: 0.330
A99: Итого: | E99: =SUM(E94:E98) -> 51.85 | F99: =SUM(F94:F98) -> 19.000 | G99: 15.600 | H99: 72.800 | I99: 508 | J99: 0.227 | K99: 7.811 | L99: 21.855 | M99: 1.858 | N99: 58.566 | O99: 251.374 | P99: 46.520 | Q99: 3.469

Sheet Лист3
B7: 0.330 | C7: 0.440 | D7: 9.460 | E7: 44 | F7: 0.033 | G7: 11.000 | I7: 0.220 | J7: 17.600 | K7: 12.100 | L7: 9.900 | M7: 2.420
B8: =B7*100/110 -> 0.300 | C8: =C7*100/110 -> 0.400 | D8: 8.600 | E8: 40.000 | F8: 0.030 | G8: 10.000 | H8: 0.000 | I8: 0.200 | J8: 16.000 | K8: 11.000 | L8: 9.000 | M8: 2.200
B12: 0.300 | C12: 0.400 | D12: 8.600 | E12: 40 | F12: 0.030 | G12: 10.000 | H12: 0.000 | I12: 0.200 | J12: 16.000 | K12: 11.000 | L12: 9.000 | M12: 2.200
B13: =B12*120/100 -> 0.360 | C13: =C12*120/100 -> 0.480 | D13: 10.320 | E13: 48.000 | F13: 0.036 | G13: 12.000 | H13: 0.000 | I13: 0.240 | J13: 19.200 | K13: 13.200 | L13: 10.800 | M13: 2.640
B16: 0.632 | C16: 6.043 | D16: 4.341 | E16: 74 | F16: 0.029 | G16: 2.430 | I16: 2.834 | J16: 13.302 | K16: 26.850 | L16: 18.468 | M16: 0.358
B17: =B16*80/60 -> 0.8426666667 | C17: =C16*80/60 -> 8.0573 | D17: 5.7880 | E17: 98.6667 | F17: 0.0387 | G17: 3.2400 | H17: 0.0000 | I17: 3.7787 | J17: 17.7360 | K17: 35.8000 | L17: 24.6240 | M17: 0.4773
